bitfinex/quotes_ETHUSD_20210401
["timestamp","ask_amount","ask_price","bid_price","bid_amount"]
[1617247000971,29.83758,1926.0,1925.6,1.2542]
[1617247001175,0.41,1925.8,1925.5,6.30303294]
[1617247001476,20.2112,1926.0,1925.5,6.30303294]
[1617247001673,27.99863,1926.0,1925.5,6.30303294]
[1617247001873,28.40863,1926.0,1925.5,3.25467664]
[1617247002075,11.6058187,1925.9,1925.5,3.25467664]
[1617247002676,19.3936087,1925.9,1925.5,3.25467664]
[1617247002893,7.78779,1925.9,1925.5,3.25467664]
[1617247003894,12.1358187,1926.1,1925.5,3.25467664]
[1617247004096,9.9063187,1926.1,1925.6,0.4]
[1617247004295,0.05,1926.0,1925.6,0.4]
[1617247004495,19.9,1925.9,1925.5,4.59497664]
[1617247004698,0.05,1926.0,1925.7,0.39]
[1617247004895,0.05,1926.0,1925.5,4.59497664]
[1617247005523,0.05,1926.0,1925.9,81.34183829]
[1617247005719,0.05,1926.0,1925.9,93.54183829]
[1617247007121,15.606,1926.2,1925.9,93.54183829]
[1617247008146,15.606,1926.2,1925.9,88.9705331]
[1617247008746,23.39228,1926.2,1925.9,88.9705331]
[1617247009547,16.16,1926.0,1925.9,88.9705331]
[1617247009748,23.94748,1926.0,1925.9,88.9705331]
[1617247010148,30.10998,1926.0,1925.9,88.9705331]
[1617247010346,30.10998,1926.0,1925.9,76.7705331]
[1617247011378,35.11998,1926.0,1925.9,75.98317265]
[1617247011580,35.79091444,1926.0,1925.9,75.98317265]
[1617247011981,36.99091444,1926.0,1925.9,74.43358656]
[1617247012182,37.26196087,1926.0,1925.9,74.43358656]
[1617247012384,37.26196087,1926.0,1925.9,9.7585]
[1617247012582,39.23993407,1926.0,1924.8,0.09406894]
[1617247012781,7.78998,1925.4,1925.0,0.329]
[1617247013181,5.94978,1925.4,1925.0,0.329]
[1617247015421,13.94978,1925.4,1925.0,0.329]
[1617247015620,7.78989,1925.3,1924.7,10.17929]
[1617247015820,11.3746176,1925.3,1924.7,10.06929]
[1617247016225,9.1372176,1925.3,1924.7,10.06929]
[1617247016427,5.95249,1925.3,1924.7,10.06929]
[1617247017826,5.95249,1925.3,1924.7,2.28]
[1617247018425,8.14,1925.4,1924.7,2.68]
[1617247018650,0.14,1925.4,1924.7,2.68]
[1617247018846,0.14,1925.4,1924.8,0.09406894]
[1617247019047,7.92964,1925.4,1924.8,0.09406894]
[1617247019247,6.23214,1925.4,1924.8,2.99406894]
[1617247020248,6.23214,1925.4,1924.8,2.9]
[1617247021050,19.31865012,1925.5,1924.8,2.9]
[1617247021051,0.54209012,1925.5,1924.9,0.322]
[1617247021277,10.0463187,1925.7,1925.0,0.4]
[1617247021476,0.14,1925.7,1925.0,0.4]
[1617247021677,0.14,1925.7,1925.1,0.336]
[1617247021878,10.0463187,1925.7,1925.1,8.9363]
[1617247022181,20.653,1925.8,1925.1,16.72444]
[1617247022378,14.494,1925.8,1925.1,19.42444]
[1617247022578,14.494,1925.8,1925.2,0.09406894]
[1617247022780,14.494,1925.8,1925.5,0.38]
[1617247022980,0.14,1925.9,1925.5,7.292]
[1617247023179,9.9063187,1926.1,1925.5,7.292]
[1617247023381,7.68699,1926.0,1925.5,7.292]
[1617247023580,7.68699,1926.0,1925.5,9.972]
[1617247024002,7.63699,1926.0,1925.5,9.972]
[1617247024202,7.63699,1926.0,1925.5,10.252]
[1617247025203,5.79489,1926.0,1925.5,10.252]
[1617247025404,5.79489,1926.0,1925.6,0.39]
[1617247025605,5.79489,1926.0,1925.5,9.872]
[1617247025805,5.79489,1926.0,1925.5,10.262]
[1617247026624,5.79489,1926.0,1925.5,9.592]
[1617247027435,13.79489,1926.0,1925.5,9.592]
[1617247027630,7.78802,1925.8,1925.5,9.592]
[1617247028232,0.205595,1925.8,1925.5,6.912]
[1617247028430,0.205595,1925.8,1925.4,2.2465]
[1617247028830,7.78823,1925.7,1925.4,0.28]
[1617247029869,7.78823,1925.7,1925.3,0.41]
[1617247030469,7.78823,1925.7,1925.2,0.28]
[1617247031270,13.94953,1925.7,1925.2,0.28]
[1617247031470,5.94953,1925.7,1925.4,0.38]
[1617247031677,10.38496,1925.8,1925.4,0.38]
[1617247032077,18.38496,1925.8,1925.2,1.1137]
[1617247032280,7.78836,1925.6,1925.2,0.8337]
[1617247033079,22.3854,1926.1,1926.0,60.69234297]
[1617247033278,27.37317,1926.1,1926.0,60.69234297]
[1617247033680,26.17317,1926.1,1926.0,60.69234297]
[1617247034079,34.17317,1926.1,1926.0,60.69234297]
[1617247034306,32.33377,1926.1,1926.0,60.64234297]
[1617247034504,18.17317,1926.1,1926.0,60.64234297]
[1617247036106,26.17317,1926.1,1926.0,60.64234297]
[1617247036926,18.17317,1926.1,1926.0,60.64234297]
[1617247037125,18.17317,1926.1,1926.0,69.30234297]
[1617247037326,16.33607,1926.1,1926.0,69.30234297]
[1617247038125,24.33607,1926.1,1926.0,69.30234297]
[1617247038325,16.23607,1926.1,1926.0,60.64234297]
[1617247038726,24.23607,1926.1,1926.0,60.64234297]
[1617247038925,24.7779942,1926.1,1926.0,60.64234297]
[1617247039552,16.7779942,1926.1,1926.0,60.64234297]
[1617247040353,14.9372942,1926.1,1926.0,60.64234297]
[1617247040753,23.06360556,1926.1,1926.0,60.64234297]
[1617247041154,14.9372942,1926.1,1926.0,60.64234297]
[1617247041554,16.02116635,1926.1,1926.0,60.64234297]
[1617247042773,15.87116635,1926.1,1926.0,60.64234297]
[1617247043374,14.03216635,1926.1,1926.0,60.64234297]
[1617247046424,15.52754821,1926.1,1926.0,60.64234297]
[1617247048829,14.44367606,1926.1,1926.0,60.64234297]
[1617247049231,15.52756545,1926.1,1926.0,60.64234297]
[1617247049432,13.68606545,1926.1,1926.0,60.64234297]
[1617247049631,21.88606545,1926.1,1926.0,60.64234297]
[1617247050051,13.68606545,1926.1,1926.0,60.64234297]
[1617247050252,18.68606545,1926.1,1926.0,60.64234297]
[1617247050652,17.97766545,1926.1,1926.0,60.64234297]
[1617247050851,30.92766545,1926.1,1926.0,59.61825222]
[1617247051653,17.97766545,1926.1,1926.0,59.61825222]
[1617247052255,22.98766545,1926.1,1926.0,59.61825222]
[1617247052456,16.14066545,1926.1,1926.0,59.61825222]
[1617247052674,21.15066545,1926.1,1926.0,59.61825222]
[1617247052875,26.52466545,1926.1,1926.0,59.61825222]
[1617247053075,37.47278385,1926.1,1926.0,59.61825222]
[1617247053275,36.43098415,1926.1,1926.0,59.61825222]
[1617247053474,26.52466545,1926.1,1926.0,59.61825222]
[1617247053876,23.19118359,1926.1,1926.0,59.61825222]
[1617247054075,22.1072942,1926.1,1926.0,59.61825222]
[1617247054475,23.191225,1926.1,1926.0,59.61825222]
[1617247055501,21.318725,1926.1,1926.0,59.61825222]
[1617247055700,21.318725,1926.1,1926.0,69.11645222]
[1617247055901,16.318725,1926.1,1926.0,69.11645222]
[1617247056303,17.40240498,1926.1,1926.0,79.47645222]
[1617247056502,17.40240498,1926.1,1926.0,69.11645222]
[1617247056503,14.40240498,1926.1,1926.0,69.11645222]
[1617247056900,24.30872368,1926.1,1926.0,69.11645222]
[1617247057700,29.31872368,1926.1,1926.0,69.11645222]
[1617247057923,24.30872368,1926.1,1926.0,69.11645222]
[1617247058126,19.41240498,1926.1,1926.0,69.11645222]
[1617247058325,21.16356311,1926.1,1926.0,69.11645222]
[1617247058527,27.43940498,1926.1,1926.0,69.11645222]
[1617247059125,35.22857498,1926.1,1926.0,69.11645222]
[1617247059325,38.76393676,1926.1,1926.0,69.11645222]
[1617247059726,41.51393676,1926.1,1926.0,69.11645222]
[1617247060572,51.42025546,1926.1,1926.0,69.11645222]
[1617247061375,56.42025546,1926.1,1926.0,69.11645222]
[1617247061574,56.41235546,1926.1,1926.0,69.11645222]
[1617247062773,56.68333404,1926.1,1926.0,69.11645222]
[1617247062974,77.55161847,1926.2,1926.1,2.93491818]
[1617247063182,77.14161847,1926.2,1926.1,2.93491818]
[1617247063382,70.1011579,1926.2,1926.1,2.93491818]
[1617247063581,80.4841579,1926.2,1926.1,2.93491818]
[1617247064184,86.73333856,1926.2,1926.1,2.93491818]
[1617247064582,84.89673856,1926.2,1926.1,2.93491818]
[1617247065580,79.88673856,1926.2,1926.1,2.93491818]
[1617247066402,79.68286593,1926.2,1926.1,2.93491818]
[1617247067601,77.84576593,1926.2,1926.1,2.93491818]
[1617247068431,72.65275593,1926.2,1926.1,2.93491818]
[1617247068629,42.65275593,1926.2,1926.1,2.93491818]
[1617247069231,41.6932165,1926.2,1926.1,2.93491818]
[1617247070232,42.23518426,1926.2,1926.1,2.93491818]
[1617247070632,40.39488426,1926.2,1926.1,2.93491818]
[1617247071258,39.8529165,1926.2,1926.1,2.93491818]
[1617247073697,38.0115165,1926.2,1926.1,2.93491818]
[1617247076499,36.1743165,1926.2,1926.1,2.93491818]
[1617247078100,66.1743165,1926.2,1926.1,2.93491818]
[1617247079134,36.44526864,1926.2,1926.1,2.93491818]
[1617247079332,36.57925735,1926.2,1926.1,2.93491818]
[1617247079532,34.73635735,1926.2,1926.1,2.93491818]
[1617247080134,34.46540521,1926.2,1926.1,2.93491818]
[1617247081755,34.46540521,1926.2,1926.1,4.13491818]
[1617247081955,33.43009718,1926.2,1926.1,4.13491818]
[1617247082356,29.36710871,1926.2,1926.1,4.13491818]
[1617247082558,27.52490871,1926.2,1926.1,2.93491818]
[1617247082955,28.56975843,1926.2,1926.1,4.13491818]
[1617247083558,28.56975843,1926.2,1926.1,2.93491818]
[1617247084580,28.56975843,1926.2,1926.1,4.13491818]
[1617247085379,28.56975843,1926.2,1926.1,4.51491818]
[1617247085580,24.29584025,1926.2,1926.0,1.2]
[1617247085779,23.25099053,1926.2,1926.0,0.4]
[1617247086379,23.25099053,1926.2,1925.9,0.28]
[1617247087006,24.28868131,1926.2,1925.7,3.48826716]
[1617247087206,0.01778066,1925.9,1925.8,1.2]
[1617247087406,0.01778066,1925.9,1925.8,1.6]
[1617247088211,6.0,1925.9,1925.8,1.6]
[1617247088409,6.54189683,1925.9,1925.8,1.6]
[1617247088609,4.70149683,1925.9,1925.8,1.6]
[1617247089010,0.54189683,1925.9,1925.8,1.6]
[1617247090455,0.55967911,1925.9,1925.8,1.6]
[1617247091254,0.54189683,1925.9,1925.8,1.6]
[1617247091653,11.58531687,1926.2,1925.8,1.6]
[1617247091855,11.58531687,1926.2,1926.0,0.41]
[1617247092456,11.58531687,1926.2,1926.0,1.61]
[1617247092855,11.58531687,1926.2,1926.0,1.56]
[1617247093254,19.37179687,1926.2,1926.0,1.56]
[1617247094678,17.53419687,1926.2,1926.1,0.38]
[1617247095081,9.74771687,1926.2,1926.1,0.38]
[1617247095281,9.61372816,1926.2,1926.1,0.38]
[1617247097708,7.77552816,1926.2,1926.1,0.38]
[1617247098710,7.77552816,1926.2,1926.0,1.2]
[1617247098912,7.77552816,1926.2,1926.0,1.6]
[1617247100133,0.006,1926.1,1926.0,1.6]
[1617247100332,7.77552816,1926.2,1926.0,1.6]
[1617247100732,5.93722816,1926.2,1926.0,1.6]
[1617247100936,0.006,1926.1,1926.0,1.6]
[1617247101135,5.93722816,1926.2,1926.0,1.6]
[1617247101334,5.93722816,1926.2,1926.0,1.2]
[1617247102338,5.93722816,1926.2,1925.9,1.58]
[1617247102563,5.93722816,1926.2,1926.1,0.4]
[1617247103362,5.93722816,1926.2,1925.9,1.48]
[1617247103565,5.93722816,1926.2,1926.0,0.39]
[1617247103763,4.09692816,1926.2,1925.9,1.48]
[1617247103962,4.09692816,1926.2,1925.9,5.21]
[1617247104163,5.12019169,1926.2,1926.0,0.4]
[1617247104364,4.09692816,1926.2,1926.0,0.4]
[1617247104767,4.09692816,1926.2,1925.9,4.82]
[1617247104965,4.09692816,1926.2,1925.9,5.22]
[1617247105183,0.006,1926.1,1925.9,4.82]
[1617247105382,0.006,1926.1,1925.9,0.28]
[1617247105982,12.006,1926.1,1925.9,3.73967778]
[1617247106186,12.0,1926.1,1925.9,3.73967778]
[1617247106383,12.0,1926.1,1926.0,6.6]
[1617247106784,10.1678,1926.1,1926.0,6.6]
[1617247106986,10.1618,1926.1,1926.0,6.21]
[1617247107585,10.1618,1926.1,1926.0,1.2]
[1617247109619,8.3216,1926.1,1926.0,1.2]
[1617247110020,16.10849,1926.1,1926.0,1.2]
[1617247112639,14.27039,1926.1,1926.0,1.2]
[1617247113056,14.27039,1926.1,1925.8,1.2]
[1617247113259,0.006,1925.9,1925.8,1.61]
[1617247113462,0.006,1925.9,1925.8,9.42]
[1617247113659,0.006,1925.9,1925.8,4.41]
[1617247114064,0.006,1925.9,1925.8,4.0]
[1617247115460,0.006,1926.0,1925.9,3.46292322]
[1617247115678,0.006,1926.0,1925.9,4.66292322]
[1617247115878,12.40259,1926.1,1925.9,5.07292322]
[1617247116078,12.35259,1926.1,1925.9,1.61]
[1617247116680,12.35259,1926.1,1925.9,1.2]
[1617247118729,10.51229,1926.1,1925.9,1.2]
[1617247119734,10.51229,1926.1,1925.8,0.28]
[1617247121734,8.67199,1926.1,1925.8,0.28]
[1617247122136,12.54842558,1926.1,1925.6,1.2]
[1617247122337,12.54842558,1926.1,1925.0,2.5955687]
[1617247122338,0.049,1926.0,1925.2,0.39]
[1617247122535,0.049,1926.0,1924.9,0.4]
[1617247122738,7.78956,1925.5,1925.2,0.357]
[1617247122936,7.78956,1925.5,1925.0,7.88289894]
[1617247122937,5.46643558,1925.4,1925.0,0.09406894]
[1617247123137,0.14,1925.3,1924.9,0.28]
[1617247123337,0.14,1925.3,1924.8,1.2]
[1617247123757,0.14,1925.3,1924.7,2.0]
[1617247123959,0.14,1925.3,1924.7,2.28]
[1617247124155,0.14,1925.3,1924.8,1.2]
[1617247124356,2.0,1925.2,1924.8,1.2]
[1617247124559,2.0,1925.0,1924.8,1.2]
[1617247124756,0.158,1925.0,1924.8,1.2]
[1617247124955,0.158,1925.0,1924.8,1.6]
[1617247125360,0.158,1925.0,1924.9,0.39]
[1617247126183,0.158,1925.1,1924.9,6.6]
[1617247126385,9.4767,1925.5,1925.0,6.21]
[1617247126585,0.14,1925.4,1924.9,0.66]
[1617247126784,3.6075207,1925.4,1924.7,2.38]
[1617247126983,0.4,1925.3,1924.7,2.0]
[1617247127186,0.049,1925.2,1924.7,2.329]
[1617247127384,0.049,1925.2,1924.8,1.2]
[1617247127785,15.78056222,1925.5,1924.8,1.2]
[1617247127984,15.78056222,1925.5,1925.0,0.329]
[1617247128185,0.54212816,1925.4,1925.0,0.329]
[1617247128587,0.01191329,1925.6,1925.0,0.329]
[1617247128810,0.01193083,1925.7,1925.3,0.371]
[1617247129012,0.01194171,1925.8,1925.4,1.2]
[1617247129211,0.01194171,1925.8,1925.5,0.357]
[1617247130811,20.24676,1925.9,1925.5,0.357]
[1617247130812,10.6270627,1925.9,1925.5,0.357]
[1617247132038,10.6270627,1925.9,1925.5,1.557]
[1617247133840,8.713,1925.9,1925.6,0.39]
[1617247134076,8.713,1925.9,1925.7,1.2]
[1617247135478,8.713,1925.9,1925.6,0.67]
[1617247135678,8.72495946,1925.9,1925.3,7.78772]
[1617247135879,0.049,1925.8,1925.4,0.28]
[1617247136277,0.049,1925.8,1925.2,3.4708168]
[1617247136478,0.049,1925.8,1925.3,0.67]
[1617247136479,0.06095402,1925.8,1925.3,0.67]
[1617247136697,0.06095402,1925.8,1925.3,1.87]
[1617247136896,14.87709304,1925.9,1925.5,0.4]
[1617247137300,14.87709304,1925.9,1925.5,1.88]
[1617247137496,14.87709304,1925.9,1925.5,0.68]
[1617247137898,7.08851304,1925.9,1925.5,0.68]
[1617247139506,7.07655402,1925.9,1925.5,0.68]
[1617247139706,7.08850344,1925.9,1925.5,0.68]
[1617247139907,5.23895402,1925.9,1925.5,0.68]
[1617247140107,5.25090377,1925.9,1925.5,0.68]
[1617247140309,5.23895402,1925.9,1925.5,0.68]
[1617247140710,5.09895402,1925.9,1925.5,0.68]
[1617247142969,3.25995402,1925.9,1925.5,0.68]
[1617247143164,3.25995402,1925.9,1925.5,0.28]
[1617247144266,3.27190331,1925.9,1925.3,0.4]
[1617247144466,3.27190331,1925.9,1925.2,0.37406894]
[1617247144467,3.6132697,1925.8,1925.2,0.37406894]
[1617247144668,3.6132697,1925.8,1925.1,0.09406894]
[1617247144669,0.38,1925.7,1925.1,0.09406894]
[1617247144866,3.4732697,1925.6,1925.1,0.28]
[1617247145066,0.14,1925.6,1925.1,0.28]
[1617247145867,2.1771118,1925.8,1925.1,0.28]
[1617247146069,10.5797118,1925.8,1925.2,0.406]
[1617247146269,7.79053,1925.4,1925.2,0.406]
[1617247148105,7.79053,1925.4,1925.1,0.39]
[1617247148807,7.79053,1925.4,1925.0,0.28]
[1617247149010,5.94933,1925.4,1925.0,0.28]
[1617247149809,10.38737,1925.5,1925.0,0.28]
[1617247150010,1.05209582,1925.5,1925.0,0.68]
[1617247150211,11.68486,1925.6,1925.0,0.68]
[1617247150410,3.89527,1925.6,1925.0,0.68]
[1617247150611,3.47381174,1925.5,1925.0,0.68]
[1617247151012,7.79074,1925.3,1925.0,0.68]
[1617247151615,3.89527,1925.6,1925.0,0.68]
[1617247151812,3.89527,1925.6,1925.1,0.39]
[1617247152014,2.05127,1925.6,1925.1,0.39]
[1617247152837,3.10080754,1925.6,1925.1,0.39]
[1617247153237,7.79047,1925.4,1925.1,0.39]
[1617247154037,17.27487,1925.4,1925.0,0.28]
[1617247154238,17.27487,1925.4,1925.0,0.66]
[1617247155062,7.631,1925.4,1925.3,0.39]
[1617247155263,0.12699083,1925.9,1925.3,0.39]
[1617247155462,0.12699083,1925.9,1925.4,0.413]
[1617247156065,0.12699083,1925.9,1925.1,2.0767833]
[1617247156262,0.12699083,1925.9,1925.3,0.28]
[1617247156461,3.86603672,1925.9,1925.3,0.28]
[1617247157062,3.89445,1926.0,1925.3,0.28]
[1617247157264,7.37048672,1926.0,1925.4,0.4]
[1617247157463,10.77048672,1926.0,1925.3,0.28]
[1617247157681,7.77048672,1926.0,1925.4,0.38]
[1617247157880,3.89445,1926.0,1925.4,0.786]
[1617247158081,2.04925,1926.0,1925.5,0.294]
[1617247158282,2.04925,1926.0,1925.5,0.684]
[1617247158283,7.78843,1925.8,1925.5,0.684]
[1617247158686,10.38457,1926.0,1925.5,0.684]
[1617247159280,10.38457,1926.0,1925.2,0.09406894]
[1617247159281,10.38457,1926.0,1925.4,0.28]
[1617247159686,7.7886,1925.7,1925.1,0.37406894]
[1617247159883,12.07368,1925.7,1925.1,0.28]
[1617247160082,4.28508,1925.7,1925.1,0.28]
[1617247160307,3.47710586,1925.6,1925.1,0.28]
[1617247160508,11.94710586,1925.6,1925.1,0.28]
[1617247160708,11.94710586,1925.6,1924.9,0.4]
[1617247160910,7.79064,1925.3,1924.9,0.4]
[1617247161109,5.95134,1925.3,1924.9,0.4]
[1617247163407,5.95134,1925.3,1924.7,2.28]
[1617247164015,4.11044,1925.3,1924.9,0.4]
[1617247164210,0.54211071,1925.4,1924.9,0.4]
[1617247164610,0.54211071,1925.4,1924.9,0.68]
[1617247165212,8.33246071,1925.4,1924.9,0.68]
[1617247165411,8.33246071,1925.4,1924.9,0.4]
[1617247165610,8.33246071,1925.4,1924.9,0.729]
[1617247165811,8.33246071,1925.4,1925.0,0.41]
[1617247167010,6.49466071,1925.4,1924.7,2.09406894]
[1617247167210,6.49466071,1925.4,1924.8,8.413]
[1617247167410,6.49466071,1925.4,1924.8,0.413]
[1617247168210,6.49466071,1925.4,1924.9,0.287]
[1617247168414,8.47,1925.6,1925.1,0.4]
[1617247168611,3.4627765,1925.5,1925.1,0.4]
[1617247168811,11.9102765,1925.5,1925.1,0.4]
[1617247169015,8.4475,1925.5,1925.1,0.4]
[1617247169413,6.8627765,1925.4,1924.9,0.287]
[1617247169613,0.4,1925.4,1924.7,2.0]
[1617247169812,0.4,1925.4,1924.7,2.294]
[1617247170012,12.9717,1925.5,1924.7,2.294]
[1617247170413,16.401427,1925.5,1924.7,2.294]
[1617247170833,7.79152,1925.1,1924.7,2.294]
[1617247171035,7.79152,1925.1,1924.9,0.38]
[1617247171234,3.429727,1925.0,1924.7,2.294]
[1617247171434,7.79152,1925.1,1924.7,2.294]
[1617247171639,7.79152,1925.1,1924.7,2.0]
[1617247171835,16.05082,1925.1,1924.7,2.0]
[1617247172635,16.05082,1925.1,1924.8,0.38]
[1617247172836,16.5930255,1925.1,1924.8,0.38]
[1617247173035,14.7527255,1925.1,1924.8,0.38]
[1617247173237,15.02379117,1925.1,1924.8,0.38]
[1617247176092,13.17059117,1925.1,1924.8,0.38]
[1617247176292,9.07257117,1925.1,1924.8,0.38]
[1617247177092,9.07257117,1925.1,1924.7,4.0775218]
[1617247177293,9.07257117,1925.1,1924.8,0.41]
[1617247178093,9.07257117,1925.1,1924.8,0.69]
[1617247178295,16.86393117,1925.1,1924.8,0.69]
[1617247178713,16.86393117,1925.1,1924.8,0.41]
[1617247179113,15.02023117,1925.1,1924.8,0.41]
[1617247179314,15.02023117,1925.1,1924.7,2.0]
[1617247179514,15.02023117,1925.1,1924.7,2.39]
[1617247180914,14.7491655,1925.1,1924.7,2.0]
[1617247181533,3.43362396,1925.0,1924.7,2.0]
[1617247181935,3.43362396,1925.0,1924.3,0.4]
[1617247182137,1.59512396,1925.0,1924.3,0.67]
[1617247182535,1.59512396,1925.0,1924.3,0.28]
[1617247182536,7.79358,1924.7,1924.3,0.28]
[1617247182734,3.4348378,1924.6,1924.1,1.0]
[1617247182933,3.4348378,1924.6,1924.1,1.287]
[1617247183334,3.4348378,1924.6,1924.1,1.0]
[1617247183335,33.4348378,1924.6,1924.1,1.0]
[1617247183533,7.7943,1924.4,1924.1,1.0]
[1617247183735,3.4348378,1924.3,1924.1,1.0]
[1617247183969,9.7971378,1924.3,1924.1,1.0]
[1617247184368,70.16,1924.2,1924.1,1.0]
[1617247184567,81.0929,1924.2,1924.1,1.0]
[1617247184770,88.88908,1924.2,1924.1,1.0]
[1617247185167,85.88908,1924.2,1924.1,1.0]
[1617247185768,32.15,1924.1,1923.6,1.0]
[1617247185969,3.42887038,1923.8,1923.6,1.0]
[1617247186370,33.42887038,1923.8,1923.6,1.0]
[1617247186587,37.49745706,1923.8,1923.6,1.0]
[1617247186990,7.79911,1923.7,1923.6,1.0]
[1617247188189,20.59381,1923.7,1923.6,1.0]
[1617247188792,21.13634032,1923.7,1923.6,1.0]
[1617247189211,28.83634032,1923.7,1923.6,1.0]
[1617247189413,22.09587975,1923.7,1923.6,1.0]
[1617247189812,52.09587975,1923.7,1923.6,1.0]
[1617247190415,56.58280791,1923.7,1923.6,1.0]
[1617247190614,61.59280791,1923.7,1923.6,1.0]
[1617247191213,59.36260791,1923.7,1923.6,1.0]
[1617247192138,59.74260791,1923.7,1923.6,1.0]
[1617247192338,59.93132461,1923.7,1923.6,1.0]
[1617247192743,68.07071179,1923.7,1923.6,1.0]
[1617247194337,66.22551179,1923.7,1923.6,0.08465822]
[1617247194579,32.15,1923.6,1923.1,1.0]
[1617247194781,32.54,1923.2,1923.1,0.72872]
[1617247194979,70.967,1923.2,1923.1,0.72872]
[1617247195185,85.06392816,1923.2,1923.1,0.72872]
[1617247195578,86.56609536,1923.2,1923.1,0.72872]
[1617247195780,91.57609536,1923.2,1923.1,0.72872]
[1617247195980,90.03161402,1923.2,1923.1,0.72872]
[1617247196582,85.02161402,1923.2,1923.1,0.72872]
[1617247197191,83.17451402,1923.2,1923.1,0.72872]
[1617247197791,52.87161402,1923.2,1923.1,0.72872]
[1617247199190,22.87161402,1923.2,1923.1,0.72872]
[1617247199392,21.82855536,1923.2,1923.1,0.72872]
[1617247199593,14.02609536,1923.2,1923.1,0.72872]
[1617247200427,4.63955593,1923.2,1923.1,1.10872]
[1617247200624,4.63955593,1923.2,1923.1,0.72872]
[1617247201022,18.88955593,1923.2,1923.1,0.72872]
[1617247201426,19.84909536,1923.2,1923.1,0.72872]
[1617247201626,19.30646759,1923.2,1923.1,0.72872]
[1617247201823,39.34735759,1923.2,1923.1,0.72872]
[1617247202224,69.34735759,1923.2,1923.1,0.72872]
[1617247202443,69.34735759,1923.2,1923.1,0.66498759]
[1617247203245,72.51935759,1923.2,1923.1,0.66498759]
[1617247203446,71.55981816,1923.2,1923.1,0.66498759]
[1617247204848,11.89802816,1923.2,1923.1,0.66498759]
[1617247205673,2.25892816,1923.2,1923.1,0.66498759]
[1617247206270,0.41982816,1923.2,1923.1,0.66498759]
[1617247207688,0.41982816,1923.2,1923.1,1.05498759]
[1617247208090,0.41982816,1923.2,1923.1,2.25498759]
[1617247208694,0.41982816,1923.2,1923.1,7.26498759]
[1617247208891,0.41982816,1923.2,1923.1,17.96498759]
[1617247209093,0.41982816,1923.2,1923.1,23.40798759]
[1617247209293,30.0,1924.5,1923.2,24.5]
[1617247209294,28.58122816,1924.5,1923.2,24.5]
[1617247209495,28.58122816,1924.5,1924.1,0.39]
[1617247209692,28.58122816,1924.5,1924.1,0.28]
[1617247209693,7.79508,1924.4,1924.1,0.28]
[1617247209892,0.09406894,1924.3,1924.0,0.28]
[1617247210091,0.48406894,1924.3,1923.7,0.42]
[1617247210945,0.09406894,1924.3,1923.7,9.41418]
[1617247211141,0.09406894,1924.3,1923.7,17.41418]
[1617247211341,0.09406894,1924.3,1923.7,19.492628]
[1617247211541,0.09406894,1924.3,1923.7,22.472628]
[1617247211743,4.16172468,1924.3,1923.9,0.39]
[1617247211943,4.06765574,1924.3,1923.9,0.39]
[1617247212142,0.54223203,1924.4,1923.9,8.18321]
[1617247212343,2.21453696,1924.5,1924.1,0.4]
[1617247212344,0.91836899,1924.5,1924.1,0.4]
[1617247212542,4.06717867,1924.4,1924.3,0.38]
[1617247212743,4.06717867,1924.4,1924.1,0.4]
[1617247212945,4.06717867,1924.4,1924.3,0.39]
[1617247213549,4.06717867,1924.4,1923.8,0.364]
[1617247213745,0.09406894,1924.3,1923.8,0.364]
[1617247214346,0.09406894,1924.4,1923.8,0.364]
[1617247214546,0.09406894,1924.5,1924.1,0.4]
[1617247214746,0.09406894,1924.5,1924.1,0.68]
[1617247215146,7.88865894,1924.5,1924.1,0.68]
[1617247215346,6.05085894,1924.5,1924.1,0.68]
[1617247216169,31.7307168,1924.6,1924.1,0.68]
[1617247216366,35.6281468,1924.6,1924.1,0.68]
[1617247217566,43.4224868,1924.6,1924.1,0.68]
[1617247218193,43.4224868,1924.6,1924.2,0.39]
[1617247218396,40.06726375,1924.6,1924.4,0.4]
[1617247218596,28.20610695,1924.6,1924.4,0.4]
[1617247218801,27.6639,1924.6,1924.4,0.4]
[1617247218995,27.6639,1924.6,1923.9,1.2]
[1617247219194,27.6639,1924.6,1924.0,0.364]
[1617247219395,27.6639,1924.6,1924.0,1.964]
[1617247219798,35.45803,1924.6,1924.0,1.964]
[1617247221016,35.45803,1924.6,1924.2,0.39]
[1617247221419,33.61533,1924.6,1924.2,0.39]
[1617247222620,33.61533,1924.6,1924.0,1.564]
[1617247222817,33.61533,1924.6,1924.1,0.38]
[1617247223462,29.71865,1924.6,1924.1,0.38]
[1617247224263,7.79464,1924.5,1924.1,0.38]
[1617247224464,5.95604,1924.5,1924.1,0.38]
[1617247227470,4.11554,1924.5,1924.1,0.38]
[1617247228075,0.39,1924.4,1923.7,13.01]
[1617247228273,5.01,1924.3,1923.6,0.28]
[1617247228474,0.14,1924.1,1923.6,0.67]
[1617247228693,0.14,1924.1,1923.3,2.5980434]
[1617247228896,11.9312,1924.1,1923.3,0.287]
[1617247229092,7.79732,1923.8,1923.3,0.287]
[1617247230490,5.95922,1923.8,1923.3,0.687]
[1617247230690,5.95922,1923.8,1923.4,1.2]
[1617247231316,9.85834,1923.8,1923.4,1.2]
[1617247231516,7.79767,1923.7,1923.4,1.2]
[1617247231716,14.69007,1923.7,1923.4,1.2]
[1617247232519,6.8924,1923.7,1923.4,1.2]
[1617247233117,8.40746356,1923.9,1923.4,1.2]
[1617247233319,8.40746356,1923.9,1923.6,0.38]